Cogmind - Beta 16 @@@ ROGUE MODE // 2025.10.25 @ 16:25:43 Player: Moodge Result: Destroyed by H-55 Commando with Gauss Rifle Performance ------------- Evolutions (3) 1500 Regions Visited (4) 800 Robots Destroyed (28) 140 Value Destroyed (1034) 1034 Prototype IDs (3) 60 Alien Tech Used (0) 0 Bonus (0) 0 TOTAL SCORE: 3534 Bonus ------- None Cogmind --------- Core Integrity 0/700 Matter 24/300 Energy 100/100 System Corruption 3% Temperature Cool (0) Movement Core (50) Location -7/Factory Parts ------- > --- POWER (3) -------- (None) > --- PROPULSION (4) --- (None) > --- UTILITY (4) ------ Improved Signal Interpreter Component Analysis Suite > --- WEAPON (2) ------- (None) > --- INVENTORY (5) ---- Improved Titanium Leg Compact Wheel Advanced Weight Redist. System Improved Sensor Array Terrain Scan Processor Peak State ------------ > --- POWER ------------ Improved Ion Engine Heavy Ion Engine Light Nuclear Core > --- PROPULSION ------- Advanced Treads Improved VTOL Module > --- UTILITY ---------- High-capacity Storage Unit Sensor Array Kinecellerator Hardlight Generator > --- WEAPON ----------- Flak Cannon Flak Cannon > --- INVENTORY -------- Ion Engine Ion Engine Light Ion Engine Target Analyzer Kinecellerator Kinecellerator Kinecellerator High-powered Shotgun Datajack [Rating: 32] Favorites ----------- Power Light Ion Engine Engine Light Ion Engine Power Core Light Nuclear Core Propulsion Advanced Treads Treads Advanced Treads Hover Unit Gravmag System Flight Unit Improved VTOL Module Utility High-capacity Storage Unit Device Sensor Array Storage High-capacity Storage Unit Processor Improved Signal Interpreter Protection Light Armor Plating Weapon Improved Assault Rifle Energy Gun Medium Laser Ballistic Gun Improved Assault Rifle Ballistic Cannon Flak Cannon Special Weapon Remote Datajack Build | -11 -10 -9 -8 -7 ------- Run | Yrd Mat Mat Mat Fac Slots Evolved 6 | . . 2 2 2 Power 2 | . . 1 . 1 Propulsion 2 | . . . 1 1 Utility 2 | . . 1 1 . Weapon . | . . . . . Parts Attached 50 | 1 9 4 17 19 Power 15 | . 3 2 5 5 Engine 11 | . 3 2 5 1 Core 4 | . . . . 4 Reactor . | . . . . . Propulsion 10 | . 2 . 5 3 Treads 3 | . 2 . 1 . Leg . | . . . . . Wheel . | . . . . . Hover 1 | . . . . 1 Flight 6 | . . . 4 2 Utility 14 | 1 2 1 3 7 Device 8 | . 1 1 2 4 Storage 2 | 1 1 . . . Processor 3 | . . . . 3 Hackware . | . . . . . Protection 1 | . . . 1 . Artifact . | . . . . . Weapon 11 | . 2 1 4 4 Energy Gun 3 | . 2 1 . . Energy Cannon . | . . . . . Ballistic Gun 5 | . . . 4 1 Ballistic Cannon 2 | . . . . 2 Launcher . | . . . . . Special Weapon 1 | . . . . 1 Impact Weapon . | . . . . . Slashing Weapon . | . . . . . Piercing Weapon . | . . . . . Special Melee Weapon . | . . . . . Unidentified Prototypes 3 | . . . 3 . Parts Lost 28 | . . 7 7 14 Power 9 | . . 2 2 5 Propulsion 8 | . . 2 3 3 Utility 5 | . . 1 1 3 Weapon 6 | . . 2 1 3 Highest Loss Streak 7 | . . 5 6 7 To Critical Strikes . | . . . . . Average Backups 5 | 4 5 5 4 7 Power 2 | 1 3 3 2 2 Propulsion . | 1 . . . . Utility 1 | . . . . 2 Weapon . | 1 1 . . . Tool/Special . | . . . . . Unused Backups 16 | . . . 2 14 Power 2 | . . . 1 1 Propulsion 2 | . . . . 2 Utility 9 | . . . . 9 Weapon 2 | . . . 1 1 Tool/Special 1 | . . . . 1 Average Slot Usage (%) 76 | . 96 73 75 73 Engine 15 | . 13 20 17 11 Core 3 | . . . . 7 Treads 10 | . 27 17 8 5 Flight 6 | . . . 10 7 Device 14 | . 12 10 11 19 Storage 8 | . 14 11 9 5 Energy Gun 5 | . 27 15 . . Ballistic Gun 7 | . . . 17 3 Ballistic Cannon 3 | . . . . 7 Peak Build Rating 32 | 1 7 8 30 32 Average Rating 19 | . 6 7 18 28 On Entrance 8 | . 1 7 6 27 Avg Prop Armor Cover (%) 7 | . . . 9 4 Naked Turns 47 | . . . . 47 Heaviest Build 82 | 5 47 50 70 82 Greatest Support 40 | 3 40 40 22 22 Greatest Overweight (x) 22 | 1 1 16 18 22 Average Overweight (x) 3 | . . 2 8 2 Largest Inventory Capacity 20 | 8 20 20 20 20 Average Capacity 18 | 7 18 20 20 16 Most Carried 13 | 7 8 8 8 13 Average Carried 5 | 4 5 5 4 7 Final Capacity 20 | 8 20 20 20 5 Final Carried 8 | 7 6 8 7 5 Class Distribution -------------------- 100% | Mutant Dominant Class ---------------- Mutant | -10/Materials Mutant | -9/Materials Mutant | -8/Materials Mutant | -7/Factory Resources | -11 -10 -9 -8 -7 ----------- Run | Yrd Mat Mat Mat Fac Matter Collected 806 | 186 114 40 322 144 Remotely . | . . . . . Salvage Created 1059 | . 142 375 369 173 Parts 57 | . 6 22 20 9 Haulers Intercepted . | . . . . . Recyclers Shooed . | . . . . . Parts Field Recycled . | . . . . . Retrieved Matter . | . . . . . Parts Self-Destructed . | . . . . . Prevented . | . . . . . Parts Restored . | . . . . . Kills | -11 -10 -9 -8 -7 ------- Run | Yrd Mat Mat Mat Fac Combat Hostiles Destroyed 28 | . 4 8 10 6 Guns 22 | . 4 7 10 1 Cannons 5 | . . . . 5 Classes Destroyed 4 | . 2 1 . 1 Swarmer 5 | . 1 . 4 . Grunt 18 | . 3 6 5 4 Sentry 3 | . . 2 1 . Programmer 2 | . . . . 2 Best Kill Streak 5 | . 3 5 4 3 Combat Bots Only 5 | . 3 5 4 3 Max Kills in Single Turn 1 | . 1 1 1 1 Gunslinging . | . . . . . Exploded . | . . . . . Melee . | . . . . . Uniques/NPCs Destroyed . | . . . . . Combat | -11 -10 -9 -8 -7 -------- Run | Yrd Mat Mat Mat Fac Hostile Shots Fired 390 | . 38 73 110 169 Missed 118 | . 7 23 34 54 Hits 272 | . 31 50 76 115 Projectile 272 | . 31 50 76 115 Critical Strikes 2 | . . . 1 1 Damage Taken 3301 | . 294 627 708 1672 Core 939 | . 29 105 99 706 Absorbed by Shields 146 | . . . 72 74 Regen/Repaired (Parts) 69 | . 69 . . . Core Remaining (%) 85 | 100 88 73 82 . Volleys Fired 111 | . 15 44 26 26 Largest 2 | . 2 2 2 2 Hottest 90 | . 90 90 46 74 Shots Fired 178 | . 30 45 54 49 Gun 137 | . 30 45 54 8 Cannon 41 | . . . . 41 Launcher . | . . . . . Special . | . . . . . Kinetic 103 | . . . 54 49 Thermal 54 | . 30 24 . . Explosive . | . . . . . Electromagnetic 21 | . . 21 . . Robot Hit Streak 14 | . 11 10 14 7 Robot Miss Streak 11 | . 2 3 2 11 Penetration Max . | . . . . . Secondary Targets 2 | . . . 2 . Max Gunslinging Chain 1 | . . . 1 . Shots Hit Robots 139 | . 24 36 38 41 Core Hits 68 | . 8 14 17 29 Critical Kills . | . . . . . Critical Parts Destroyed . | . . . . . Critical Strikes 6 | . 2 4 . . Burn 5 | . 2 3 . . Corrupt 1 | . . 1 . . Melee Attacks . | . . . . . Impact . | . . . . . Slashing . | . . . . . Piercing . | . . . . . Sneak Attacks . | . . . . . Combat Hostiles . | . . . . . Follow-up Attacks . | . . . . . Damage Inflicted 1840 | . 279 467 600 494 Guns 1446 | . 279 465 600 102 Cannons 375 | . . . . 375 Explosions . | . . . . . Melee . | . . . . . Ramming 19 | . . 2 . 17 Kinetic 1077 | . . . 600 477 Thermal 533 | . 279 254 . . Explosive . | . . . . . Electromagnetic 211 | . . 211 . . Impact . | . . . . . Slashing . | . . . . . Piercing . | . . . . . Highest Corruption 3 | . . . 1 3 Average Corruption 1 | . . . 1 2 Corruption Purged . | . . . . . Corruption Blocked . | . . . . . Effects 12 | . . . 4 8 Message Errors 1 | . . . . 1 Matter Fused 3 | . . . 1 2 Heat Flow Errors 3 | . . . 1 2 Data Loss (minor) 2 | . . . . 2 Data Loss (major) 1 | . . . . 1 Misfires 2 | . . . 2 . Overload Shots . | . . . . . Overflow Damage . | . . . . . Projectiles . | . . . . . Explosions . | . . . . . Melee . | . . . . . Knockbacks 24 | . . . . 24 Impact 1 | . . . . 1 Kinetic 18 | . . . . 18 Secondary 5 | . . . . 5 Self-Inflicted Damage 7 | . . . . 7 Shots . | . . . . . Rammed 7 | . 1 1 . 5 Targets Rammed 7 | . 1 1 . 5 Kicked . | . . . . . Crushed . | . . . . . Highest Temperature 458 | . 458 165 191 280 Average Temperature 104 | . 204 86 37 101 Received Heat Transfer 1023 | . 78 246 162 537 Effects 3 | . 1 . . 2 Shutdowns 1 | . 1 . . . Interference 2 | . . . . 2 Siege Activations . | . . . . . Martial Activations . | . . . . . Shielding Activations . | . . . . . Robots Disrupted . | . . . . . Combat Hostiles . | . . . . . Robots Corrupted . | . . . . . Combat Hostiles . | . . . . . Parts Fried 2 | . . 2 . . Impact Corruptions . | . . . . . Robots Melted 1 | . . 1 . . Combat Hostiles 1 | . . 1 . . Parts Melted 5 | . 3 2 . . Heat Transferred 1854 | . 892 962 . . Parts Sabotaged . | . . . . . Parts Stolen . | . . . . . Parts Stripped . | . . . . . Power Chain Reactions . | . . . . . Alert | -11 -10 -9 -8 -7 ------- Run | Yrd Mat Mat Mat Fac Maximum Alert Level 1 | . . . . 1 Low Security (%) 96 | 100 100 100 100 91 Level 1 3 | . . . . 8 Level 2 . | . . . . . Level 3 . | . . . . . Level 4 . | . . . . . Level 5 . | . . . . . High Security . | . . . . . Max Security . | . . . . . Peak Influence 213 | . 60 90 117 213 Initial 47 | . . 4 . 47 Average 25 | . 9 21 13 41 Influence Increases 1013 | . 105 246 257 405 Destroy 0b10 Robot/C 560 | . 80 160 200 120 Destroy Leader 120 | . 10 40 40 30 Successful Hack 16 | . . 16 . . Destroy Structure 2 | . . . 2 . Partial Spotted 45 | . . 15 . 30 Lose Combat Pursuer 270 | . 15 15 15 225 Influence Decreases 864 | . 94 257 152 361 Entered New Map 65 | . . 7 . 58 Time Decay 623 | . 94 200 117 212 Lost Part 176 | . . 50 35 91 Squads Dispatched 19 | . 1 4 3 11 Investigation 5 | . 1 1 2 1 Extermination 3 | . . . . 3 Reinforcement 7 | . . 3 . 4 Assault . | . . . . . Garrison 4 | . . . 1 3 Intercept . | . . . . . Searches Triggered . | . . . . . Construction Impeded 1 | . . . . 1 Haulers Reinforced . | . . . . . Active Scanning Responses . | . . . . . Cargo Convoy Interrupts 1 | . . . . 1 Stealth | -11 -10 -9 -8 -7 --------- Run | Yrd Mat Mat Mat Fac Distress Signals 9 | . 3 4 1 1 Communications Jammed . | . . . . . Distress Signals . | . . . . . Times Spotted 75 | . 12 16 13 34 Peak Tracking Total 15 | . 4 5 6 15 Tactical Retreats 8 | . 1 1 1 5 Traps | -11 -10 -9 -8 -7 ------- Run | Yrd Mat Mat Mat Fac Traps Triggered 2 | . 1 . . 1 Indirectly . | . . . . . Trap Hack Attempts . | . . . . . Triggered . | . . . . . Disarmed . | . . . . . Reprogrammed . | . . . . . Reused . | . . . . . Traps Extracted . | . . . . . Installed . | . . . . . Triggered . | . . . . . Machines | -11 -10 -9 -8 -7 ---------- Run | Yrd Mat Mat Mat Fac Machines Disabled . | . . . . . Max in Single Turn . | . . . . . Machines Repaired . | . . . . . Machines Dismantled . | . . . . . Machines Sabotaged . | . . . . . Overloaded Fab Kills . | . . . . . Hacking | -11 -10 -9 -8 -7 --------- Run | Yrd Mat Mat Mat Fac Machines Accessed 7 | . 1 2 2 2 Terminals 5 | . . 2 2 1 Fabricators . | . . . . . Repair Stations 2 | . 1 . . 1 Recycling Units . | . . . . . Scanalyzers . | . . . . . Garrison Access . | . . . . . Total Hacks 15 | . 2 5 4 4 Successful 5 | . 2 2 . 1 Failed 10 | . . 3 4 3 Catastrophic 1 | . . . . 1 Database Lockouts . | . . . . . Manual . | . . . . . Terminals 11 | . . 5 4 2 Fabricators . | . . . . . Repair Stations 4 | . 2 . . 2 Recycling Units . | . . . . . Scanalyzers . | . . . . . Garrison Access . | . . . . . Terminal Hacks 3 | . . 2 . 1 Alert Level 1 | . . . . 1 Recall Investigation 1 | . . 1 . . Recall Reinforcements 1 | . . 1 . . Fabricator Hacks . | . . . . . Repair Station Hacks 2 | . 2 . . . Scan Component 1 | . 1 . . . Repair 1 | . 1 . . . Recycling Unit Hacks . | . . . . . Scanalyzer . | . . . . . Garrison Access Hacks . | . . . . . Unauthorized Hacks . | . . . . . Terminals . | . . . . . Fabricators . | . . . . . Repair Stations . | . . . . . Recycling Units . | . . . . . Scanalyzers . | . . . . . Garrison Access . | . . . . . Data Cores Recovered . | . . . . . Used . | . . . . . Hacking Detections 7 | . 1 2 2 2 Full Trace Events 5 | . . 2 2 1 Feedback Events 1 | . . . 1 . Corruption 1 | . . . 1 . Feedback Blocked . | . . . . . Robot Schematics Acquired . | . . . . . Robots Built . | . . . . . Authchips . | . . . . . Time . | . . . . . Total Robot Build Rating . | . . . . . Part Schematics Acquired . | . . . . . Parts Built . | . . . . . Authchips . | . . . . . Time . | . . . . . Total Part Build Rating . | . . . . . Part Studies Acquired . | . . . . . Parts Repaired 1 | . 1 . . . Time 26 | . 26 . . . Parts Recycled . | . . . . . Recycled Matter . | . . . . . Retrieved Matter . | . . . . . Retrieved Components . | . . . . . Parts Scanalyzed . | . . . . . Part Schematics Acquired . | . . . . . Parts Damaged . | . . . . . Bothacking | -11 -10 -9 -8 -7 ------------ Run | Yrd Mat Mat Mat Fac Used RIF Installer . | . . . . . Robots Hacked . | . . . . . Non-combat . | . . . . . Combat . | . . . . . Robot Hacks Applied . | . . . . . Relay Couplers Released . | . . . . . Fabnet Peak Effective % . | . . . . . Robots Rewired . | . . . . . Allies Hacked . | . . . . . Hacks Repelled . | . . . . . Allies | -11 -10 -9 -8 -7 -------- Run | Yrd Mat Mat Mat Fac Total Allies . | . . . . . Largest Group . | . . . . . Highest-Rated Group . | . . . . . Highest-Rated Ally . | . . . . . Total Orders . | . . . . . Ally Attacks . | . . . . . Total Damage . | . . . . . Kills . | . . . . . Allies Corrupted . | . . . . . Allies Melted . | . . . . . Intel | -11 -10 -9 -8 -7 ------- Run | Yrd Mat Mat Mat Fac Active Infowar (turns) 4548 | . 521 671 1724 1632 Sensors 4548 | . 521 671 1724 1632 Robot Analysis Total . | . . . . . Derelict Logs Recovered . | . . . . . Drone Launches . | . . . . . Drone Recoveries . | . . . . . Exploration | -11 -10 -9 -8 -7 ------------- Run | Yrd Mat Mat Mat Fac Turns Passed 5231 | 62 596 729 1724 2120 Spaces Moved 1390 | 54 200 207 219 710 Core 197 | 54 . 11 6 126 Treads 515 | . 200 196 21 98 Legs . | . . . . . Wheels . | . . . . . Hover 2 | . . . . 2 Flight 676 | . . . 192 484 Fastest Speed 34 | 50 160 240 189 34 Average Speed 325 | 98 220 288 726 259 Slowest Speed 1175 | 100 240 850 965 1175 Overloaded Moves . | . . . . . Propulsion Burnouts . | . . . . . Robots Hopped . | . . . . . Potential Cave-ins . | . . . . . Cave-ins Triggered . | . . . . . Exploration Rate (%) 21 | 4 43 20 19 20 Regions Visited 4 Branch Regions . Pre-discovered Areas . | . . . . . Known Exits Taken . | . . . . . Unknown Exits Taken 4 | 1 1 1 1 . Scrap Searched . | . . . . . Spaces Dug . | . . . . . Terrain Destroyed . | . . . . . Melee . | . . . . . Projectile . | . . . . . AOE . | . . . . . Terrain Rammed . | . . . . . Walls Destroyed . | . . . . . Machines Disabled . | . . . . . Actions | -11 -10 -9 -8 -7 --------- Run | Yrd Mat Mat Mat Fac Total 1920 | 62 323 299 308 928 Wait 265 | . 88 36 24 117 Move 1386 | 53 199 206 218 710 Hop . | . . . . . Pick Up 60 | 8 8 7 16 21 Fast Attach 8 | . . . . 8 Attach 32 | 1 7 5 12 7 Detach . | . . . . . Swap 16 | . 3 . 7 6 Drop 24 | . 2 . 5 17 Fire 111 | . 15 44 26 26 Melee . | . . . . . Ram 5 | . . . . 5 Kick . | . . . . . Crush 2 | . 1 1 . . Escape Stasis 11 | . . . . 11 Rewire . | . . . . . Trap . | . . . . . Miscellaneous . | . . . . . Route ------- -11/Scrapyard -10/Materials (discovered 2 exits: *Mat / [*Min]) -9/Materials -8/Materials -7/Factory History --------- Turn | Location | Event 9 | -11/Scrapyard | Discovered new exit (range 16) 63 | -11/Scrapyard | Entered Materials 308 | -10/Materials | Build established: Mutant 330 | -10/Materials | Repaired Lgt. Treads 440 | -10/Materials | Discovered new exit (range 6) 642 | -10/Materials | Discovered new exit (range 7) 659 | -10/Materials | Entered another Materials area 659 | -9/Materials | Evolved 2 slots: Power x1, Utility x1 1055 | -9/Materials | Lost 5 parts (2p1u2w) 1290 | -9/Materials | Discovered new exit (range 10) 1388 | -9/Materials | Entered another Materials area 1388 | -8/Materials | Evolved 2 slots: Propulsion x1, Utility x1 1546 | -8/Materials | Lost 6 parts (2p2n1u1w) 1750 | -8/Materials | Garrison activated, responded to threat 2074 | -8/Materials | Met 7R-MNS 2711 | -8/Materials | Discovered new exit (range 12) 3112 | -8/Materials | Entered Factory 3112 | -7/Factory | Evolved 2 slots: Power x1, Propulsion x1 3113 | -7/Factory | Caught up to 7R-MNS 4689 | -7/Factory | Garrison activated, responded to threat 4790 | -7/Factory | Cargo convoy interrupted 4792 | -7/Factory | Core integrity fell below 50% 4813 | -7/Factory | Lost 7 parts (2p1n2u2w) 5205 | -7/Factory | Core integrity fell below 20% 5232 | -7/Factory | Destroyed by H-55 Commando with Gauss Rifle Last Messages --------------- 05198_ Slammed into P-60 Hacker. 05198_ Xenon Bombardment Thruster destroyed. 05199_ R-06 Scavenger collects Nuclear Core. 05200_ U-05 Engineer works on Matter Pump. 05202_ K-01 Serf collects debris. 05205_ U-05 Engineer works on Matter Pump. 05208_ K-01 Serf collects debris. 05208_ Nuclear Core destroyed. 05210_ Cesium-ion Thruster destroyed. 05211_ U-05 Engineer works on Matter Pump. 05211_ K-01 Serf cleans the Nuclear Reactor. 05211_ U-05 Engineer works on Matter Pump. 05212_ Nuclear Core destroyed. 05216_ System corrupted: Matter fused (-5). 05216_ U-05 Engineer works on Matter Pump. 05216_ Remote Datajack destroyed. 05216_ K-01 Serf collects debris. 05216_ U-05 Engineer works on Matter Pump. 05228_ Matter Pump disabled. 05229_ Penetrated by Slug. Map ----- +----------------------------------------------------+ | ?????????????? """ """ + ** | | ?????????????? """ """ # ** | | ?????????????? """ """ # * | | ?????????????? """ """ # | | ???????????????? ? ? """ """ """ """ # | | ?????????????????????""" """ "" """ # | | ??????????????????? """ """ # | | ???????????????????? """ """ ####### | | ??????????????????????"" """ """ # | | ??????????????????????"" """ """ # | | ????????????????????? """ # """ | | ??????????????????????"" """ # """ | | ??????????????????????"" """ " """ # """ | | ?????????????????????""" """ "" """ # | | ???????????????????? "" """ + """ | | ?????????????????????? # """ | | ???????????????????????######## """ """ # """ | | ??????????????????????????????# """ """ # | | ??????????????????????????????# %"" """ # | | ??????????????????????????????# # | | ??????????????????????????????# """ """ ####### | | ??????????????????????????????# """ """ #?????? | | ??????????????????????????????# """ """ #?????? | | ????????????????? ?????????# #?????? | | ????????????????# ######### """ ####### | | ?????????? @ """ | | ?????????? """ | | ?????????? | | ??????????? """ | | ??????????? h """ | | ????????????################### ^ """ | | ??????????????????????????????# | | ??????????????????????????????# """ | | ??????????????????????????????# """ | | ??????????????????????????????# "" | | ??????????????????????????????# | | ??????????????????????????????# | | ??????????????????????????????# ######### | | ??????????????????????????????# #???????# | | ??????????????????????????????+ #???????# | | ????????????????????????????? # #???????# | | ???????????????????????????? + #???????# | | ??????????????????????????????# #???????# | | ??????????????????????????????# #???????# | | ??????????????????????????????# #???????####+# | | ??????????????????????????????? ?????????????? | | ????????????????????????????????? ??????? ?????? | | ??????????????????????????????? ??????# ?????? | | ??????????????????????????????# ??????# ?????? | | ??????????????????????????????# ??????# ?????? | +----------------------------------------------------+ Best States ------------- Heat Dissipation 34 Energy Generation 32 Energy Capacity 520 Matter Stores 300 Matter Capacity 300 Sight Range 16 Robot Scan Range 14 Terrain Scan Density 10 Armor Coverage 150 Evasion (%) 63 Targeting Accuracy 8 Target Analysis 5 Recoil Reduction 2 Particle Charging 15 Kinecelleration 30 Item Schematics ----------------- None Robot Schematics ------------------ None Fabricated ------------ Nothing Repaired ---------- Lgt. Treads | 50% | -10/Materials Studied --------- None Alien Tech Used ----------------- None Achievements -------------- Jackpot Slippery One Challenges ------------ None Game ------ Seed InsulationZhirovGun Manual? 0 Play Time 00:29:57 Cumulative 18.1 hours Start 2025.10.25 @ 16:00:31 End 2025.10.25 @ 16:25:43 Sessions 1 Manual Loads 0 Difficulty Rogue Special Mode None Game No. 58 Rogue 58 Adventurer 0 Explorer 0 Win Type - Total 0 Types 0/0/0/0/0/0/0/0/0/0 Lore% 9 Gallery% 20 Achievement% 17 Wizard Run 0 Options --------- Layout 1 ASCII 0 Keyboard 0 Movement Mouse Keybinds 0 Fullscreen 1 Font 32/SmallcapsGlow Map View 50x35 Zoom Use 0% Tactical HUD 1 Map Filters NONE Filters NONE Steam 1 RUN: c01b3ede-e625-4d46-b8d8-9322c582cff3